bitfinex/quotes_BTCUSD_20250618
["timestamp","ask_amount","ask_price","bid_price","bid_amount"]
[1750239946205,0.58168651,104760.0,104750.0,0.00318]
[1750239949007,0.54868651,104760.0,104750.0,0.03368]
[1750239950761,0.58008651,104760.0,104750.0,0.00318]
[1750239954498,0.57608651,104760.0,104750.0,0.00218]
[1750239954722,0.60175986,104760.0,104750.0,0.00218]
[1750239954949,0.57435986,104760.0,104750.0,0.00318]
[1750239955172,0.37759986,104760.0,104750.0,0.03578]
[1750239955384,0.57435986,104760.0,104750.0,0.03578]
[1750239956253,0.63926354,104760.0,104750.0,0.03578]
[1750239956708,0.37759986,104760.0,104750.0,0.03578]
[1750239956929,0.57439986,104760.0,104750.0,0.03578]
[1750239957578,0.37759986,104760.0,104750.0,0.06908]
[1750239957800,0.51104651,104760.0,104750.0,0.06908]
[1750239958013,0.51100651,104760.0,104750.0,0.06908]
[1750239958711,0.34792651,104760.0,104750.0,0.06808]
[1750239958927,0.50600651,104760.0,104750.0,0.07008]
[1750239959165,0.50600651,104760.0,104750.0,0.123788]
[1750239959375,0.50500651,104760.0,104750.0,0.123788]
[1750239960475,0.57866218,104760.0,104750.0,0.123788]
[1750239960698,0.57766218,104760.0,104750.0,0.121788]
[1750239960929,0.57866218,104760.0,104750.0,0.125788]
[1750239962457,0.601368,104760.0,104750.0,0.125788]
[1750239963740,0.52771233,104760.0,104750.0,0.125788]
[1750239965303,0.52771233,104760.0,104750.0,0.092488]
[1750239966861,0.52671233,104760.0,104750.0,0.089488]
[1750239967301,0.56448085,104760.0,104750.0,0.057888]
[1750239967754,0.53438085,104760.0,104750.0,0.088188]
[1750239967973,0.65670169,104760.0,104750.0,0.088188]
[1750239968199,0.65770169,104760.0,104750.0,0.088188]
[1750239969478,0.71520169,104760.0,104750.0,0.056888]
[1750239969702,0.74365414,104760.0,104750.0,0.056888]
[1750239969928,0.77592496,104760.0,104750.0,0.056888]
[1750239970391,0.81386156,104760.0,104750.0,0.056888]
[1750239971053,0.81386156,104760.0,104700.0,0.44906511]
[1750239971054,0.21008698,104720.0,104700.0,0.44906511]
[1750239971278,0.00954945,104710.0,104700.0,0.2355921]
[1750239971503,0.00954945,104710.0,104700.0,0.24514255]
[1750239971735,0.01909918,104710.0,104700.0,0.28799434]
[1750239972348,0.02912103,104710.0,104700.0,0.29299434]
[1750239972601,0.06882443,104710.0,104700.0,0.29299434]
[1750239972789,0.23922493,104710.0,104700.0,0.28799453]
[1750239973035,0.01957112,104710.0,104700.0,0.29754498]
[1750239973255,0.01002139,104710.0,104700.0,0.29754498]
[1750239973470,0.01957112,104710.0,104700.0,0.30647619]
[1750239973683,0.01957102,104710.0,104700.0,0.30647619]
[1750239973922,0.01957102,104710.0,104700.0,0.31647619]
[1750239974140,0.01957102,104710.0,104700.0,0.34737619]
[1750239974359,0.02057102,104710.0,104700.0,0.3234894]
[1750239974573,0.02157102,104710.0,104700.0,0.34837619]
[1750239974982,0.01202139,104710.0,104700.0,0.34837619]
[1750239975234,0.02157093,104710.0,104700.0,0.34837619]
[1750239976088,0.06101037,104710.0,104700.0,0.34837619]
[1750239976303,0.02157093,104710.0,104700.0,0.34837619]
[1750239976725,0.03112056,104710.0,104700.0,0.34837619]
[1750239977153,0.02157093,104710.0,104700.0,0.3304894]
[1750239977366,0.02157093,104710.0,104700.0,0.34835757]
[1750239978886,0.00247194,104710.0,104700.0,0.34835757]
[1750239979297,0.00247194,104710.0,104700.0,0.34835248]
[1750239979511,0.01202139,104710.0,104700.0,0.34835248]
[1750239980171,0.0120213,104710.0,104700.0,0.34835248]
[1750239980563,0.00247194,104710.0,104700.0,0.34835248]
[1750239980775,0.0120213,104710.0,104700.0,0.34835248]
[1750239980988,0.01202139,104710.0,104700.0,0.34835248]
[1750239981337,0.00247194,104710.0,104700.0,0.34835248]
[1750239981745,0.01202139,104710.0,104700.0,0.34835248]
[1750239981941,0.00247194,104710.0,104700.0,0.34835248]
[1750239982794,0.00247194,104710.0,104700.0,0.34834685]
[1750239985756,0.00247194,104710.0,104700.0,0.81740841]
[1750239986373,0.00247194,104710.0,104700.0,0.60058697]
[1750239987226,0.00247194,104710.0,104700.0,0.81740856]
[1750239987638,0.00247194,104710.0,104700.0,0.66140856]
[1750239987850,0.00247194,104710.0,104700.0,0.81744856]
[1750239989112,0.00247194,104710.0,104700.0,1.03427015]
[1750239989344,0.13430328,104750.0,104740.0,0.28319025]
[1750239989594,0.1343031,104750.0,104740.0,0.30109342]
[1750239989805,0.14384909,104750.0,104740.0,0.30109342]
[1750239990011,0.30339526,104750.0,104740.0,0.30109342]
[1750239990489,0.29384909,104750.0,104740.0,0.30109342]
[1750239990698,0.27575748,104750.0,104740.0,0.30609342]
[1750239991140,0.23679791,104750.0,104740.0,0.30609342]
[1750239991349,0.24634381,104750.0,104740.0,0.30608659]
[1750239991771,0.25588998,104750.0,104740.0,0.30608659]
[1750239992468,0.26543633,104750.0,104740.0,0.30608659]
[1750239992684,0.26543624,104750.0,104740.0,0.30608659]
[1750239993124,0.30338043,104750.0,104740.0,0.30608659]
[1750239994038,0.30338043,104750.0,104740.0,0.30608299]
[1750239994473,0.29383417,104750.0,104740.0,0.30608299]
[1750239995669,0.30338052,104750.0,104740.0,0.30608299]
[1750239995901,0.29383417,104750.0,104740.0,0.30608299]
[1750239996135,0.35570749,104750.0,104740.0,0.30608299]
[1750239996371,0.3557074,104750.0,104740.0,0.30608299]
[1750239996601,0.30338043,104750.0,104740.0,0.30608299]
[1750239996881,0.30338043,104750.0,104740.0,0.30607931]
[1750239997842,0.23667458,104750.0,104740.0,0.30607931]
[1750239998560,0.40851411,104750.0,104740.0,0.21383807]
[1750239998798,0.46943347,104750.0,104740.0,0.02288906]
[1750239999033,0.17556133,104750.0,104740.0,0.02288906]
[1750239999300,0.23786133,104750.0,104740.0,0.02288906]
[1750239999995,0.23786133,104750.0,104740.0,0.01788906]
[1750240000203,0.23786133,104750.0,104740.0,0.01888906]
[1750240000410,0.23886133,104750.0,104740.0,0.01988906]
[1750240000683,0.39482133,104750.0,104740.0,0.01988906]
[1750240001324,0.49106309,104750.0,104740.0,0.01988906]
[1750240001535,0.56302823,104750.0,104740.0,0.00204736]
[1750240001747,0.49106309,104750.0,104740.0,0.00204736]
[1750240001960,0.5299448,104750.0,104740.0,0.00204736]
[1750240003037,0.5586338,104750.0,104740.0,0.00204736]
[1750240005759,0.4026738,104750.0,104740.0,0.00204736]
[1750240006006,0.4026738,104750.0,104740.0,0.00104736]
[1750240006007,0.4962938,104750.0,104740.0,0.00104736]
[1750240006250,0.4972938,104750.0,104740.0,0.00104736]
[1750240006479,0.4972938,104750.0,104740.0,0.01889201]
[1750240006706,0.57936617,104750.0,104740.0,0.01889201]
[1750240006923,0.4972938,104750.0,104740.0,0.01889201]
[1750240007395,0.4970538,104750.0,104740.0,0.01789201]
[1750240008111,0.4980538,104750.0,104740.0,0.01889201]
[1750240009107,0.4980538,104750.0,104740.0,0.01889956]
[1750240009324,0.4980938,104750.0,104740.0,0.01889956]
[1750240011295,0.4980938,104750.0,104740.0,0.02844701]
[1750240011694,0.6480938,104750.0,104740.0,0.02844701]
[1750240012750,0.72927533,104750.0,104740.0,0.01889956]
[1750240014727,0.75199289,104750.0,104740.0,0.01889956]
[1750240016387,0.67081136,104750.0,104740.0,0.00104736]
[1750240016611,0.67081136,104750.0,104740.0,0.01059481]
[1750240018889,0.67081136,104750.0,104740.0,0.00104736]
[1750240021486,0.53424257,104750.0,104740.0,0.00104736]
[1750240021695,0.75745344,104750.0,104740.0,0.00104736]
[1750240022857,0.72655344,104750.0,104740.0,0.00104736]
[1750240023122,0.69475344,104750.0,104740.0,0.00104736]
[1750240023528,0.73519344,104750.0,104740.0,0.00104736]
[1750240025526,0.73419344,104750.0,104740.0,0.00104736]
[1750240025971,0.73519344,104750.0,104740.0,0.00104736]
[1750240026419,0.73419344,104750.0,104740.0,0.00104736]
[1750240026631,0.73519344,104750.0,104740.0,0.00104736]
[1750240026842,0.83134266,104750.0,104740.0,0.00104736]
[1750240027247,0.73519344,104750.0,104740.0,0.00104736]
[1750240030692,0.74186006,104750.0,104740.0,0.00104736]
[1750240031115,0.73551344,104750.0,104740.0,0.00104736]
[1750240031323,0.73551344,104750.0,104740.0,0.03154736]
[1750240031766,0.73551344,104750.0,104740.0,0.01154736]
[1750240031973,0.19094901,104740.0,104730.0,0.27000363]
[1750240033015,0.73456062,104750.0,104730.0,0.27000363]
[1750240033242,0.73456062,104750.0,104730.0,0.27100363]
[1750240033476,0.73356062,104750.0,104730.0,0.27100363]
[1750240033682,0.02009426,104740.0,104730.0,0.27200363]
[1750240033892,0.02009426,104740.0,104730.0,0.27100363]
[1750240034323,0.21104327,104740.0,104730.0,0.27200363]
[1750240034530,0.22059044,104740.0,104730.0,0.26245591]
[1750240034739,0.22059044,104740.0,104730.0,0.26145591]
[1750240034944,0.22059044,104740.0,104730.0,0.29195591]
[1750240035420,0.03918832,104740.0,104730.0,0.30150363]
[1750240035638,0.07642467,104740.0,104730.0,0.30050363]
[1750240035845,0.07742467,104740.0,104730.0,0.30250363]
[1750240036051,0.07742531,104740.0,104730.0,0.30250363]
[1750240036718,0.07642531,104740.0,104730.0,0.30050363]
[1750240036929,0.07742531,104740.0,104730.0,0.30350363]
[1750240038107,0.07742531,104740.0,104730.0,0.30550363]
[1750240038784,0.26837432,104740.0,104730.0,0.29595591]
[1750240039039,0.26837432,104740.0,104730.0,0.30550363]
[1750240041084,0.26837432,104740.0,104730.0,0.29595591]
[1750240041303,0.25882724,104740.0,104730.0,0.29595591]
[1750240042531,0.24928007,104740.0,104730.0,0.2864081]
[1750240042739,0.34061404,104740.0,104730.0,0.27686011]
[1750240042947,0.33106678,104740.0,104730.0,0.27686011]
[1750240043152,0.34428151,104740.0,104730.0,0.27686011]
[1750240043563,0.25294754,104740.0,104730.0,0.27686011]
[1750240043768,0.23018546,104740.0,104730.0,0.27686011]
[1750240044193,0.23018546,104740.0,104730.0,0.26731203]
[1750240045451,0.22063801,104740.0,104730.0,0.0668]
[1750240046276,0.37711801,104740.0,104730.0,0.0668]
[1750240046487,0.39988009,104740.0,104730.0,0.0668]
[1750240050316,0.37119109,104740.0,104730.0,0.0668]
[1750240052076,0.37119109,104740.0,104730.0,0.07634836]
[1750240052295,0.34842901,104740.0,104730.0,0.2673156]
[1750240052756,0.34842901,104740.0,104730.0,0.07634836]
[1750240053184,0.34842901,104740.0,104730.0,0.0668]
[1750240053797,0.34830901,104740.0,104730.0,0.0668]
[1750240055266,0.34830901,104740.0,104730.0,0.0648]
[1750240055758,0.34830901,104740.0,104730.0,0.0658]
[1750240056270,0.34830901,104740.0,104730.0,0.0628]
[1750240056496,0.34730901,104740.0,104730.0,0.0628]
[1750240056731,0.34830901,104740.0,104730.0,0.0638]
[1750240058194,0.34830901,104740.0,104730.0,0.07334827]
[1750240058421,0.34830901,104740.0,104730.0,0.0638]
[1750240058894,0.34830901,104740.0,104730.0,0.26431551]
[1750240059824,0.34830901,104740.0,104730.0,0.25476724]
[1750240060090,0.37106379,104740.0,104730.0,0.2643156]
[1750240060568,0.43498503,104740.0,104730.0,0.0638]
[1750240060802,0.24403602,104740.0,104730.0,0.0638]
[1750240061040,0.34830901,104740.0,104730.0,0.0638]
[1750240062301,0.34914901,104740.0,104730.0,0.0638]
[1750240062796,0.53064339,104740.0,104730.0,0.002]
[1750240066208,0.21010345,104710.0,104700.0,0.02619215]
[1750240066450,0.36758345,104710.0,104700.0,0.02619215]
[1750240067673,0.3677249,104710.0,104700.0,0.02919215]
[1750240068415,0.46396666,104710.0,104700.0,0.02919215]
[1750240069053,0.49686666,104710.0,104700.0,0.03019215]
[1750240069286,0.57302742,104710.0,104700.0,0.03019215]
[1750240069509,0.49686666,104710.0,104700.0,0.03119215]
[1750240069742,0.46496666,104710.0,104700.0,0.03119215]
[1750240069956,0.46396666,104710.0,104700.0,0.02619215]
[1750240070176,0.49586666,104710.0,104700.0,0.02619215]
[1750240070803,0.49686666,104710.0,104700.0,0.02819215]
[1750240071227,0.57589742,104710.0,104700.0,0.02819215]
[1750240072097,0.60899742,104710.0,104700.0,0.02819215]
[1750240073524,0.52996666,104710.0,104700.0,0.02819215]
[1750240073786,0.64686666,104710.0,104700.0,0.02819215]
[1750240074989,0.61496666,104710.0,104700.0,0.02819215]
[1750240075988,0.37272596,104710.0,104700.0,0.02819215]
[1750240076393,0.58282941,104710.0,104700.0,0.02819215]
[1750240077396,0.58282941,104710.0,104700.0,0.04604029]
[1750240078256,0.58282941,104710.0,104700.0,0.04603784]
[1750240078696,0.61362941,104710.0,104700.0,0.04603784]
[1750240079315,0.61362941,104710.0,104700.0,0.04603704]
[1750240079524,0.58282941,104710.0,104700.0,0.04603704]
[1750240079938,0.36110345,104710.0,104700.0,0.02819215]
[1750240080753,0.36110345,104710.0,104700.0,0.04603506]
[1750240081607,0.36110345,104710.0,104700.0,0.02819215]
[1750240082889,0.36110345,104710.0,104700.0,0.0460378]
[1750240083031,0.41135669,104710.0,104700.0,0.0460378]
[1750240083443,0.43255669,104710.0,104700.0,0.0460378]
[1750240083851,0.38230345,104710.0,104700.0,0.0460378]
[1750240084385,0.35110345,104710.0,104700.0,0.04603827]
[1750240085020,0.38320345,104710.0,104700.0,0.02819215]
[1750240088066,0.35110345,104710.0,104700.0,0.02819215]
[1750240088696,0.38180345,104710.0,104700.0,0.02819215]
[1750240088929,0.46512389,104710.0,104700.0,0.02819215]
[1750240089777,0.35110345,104710.0,104700.0,0.02819215]
[1750240091549,0.37376808,104710.0,104700.0,0.02819215]
[1750240091729,0.37376808,104710.0,104700.0,0.04607465]
[1750240091927,0.37376663,104710.0,104700.0,0.04607465]
[1750240092134,0.41548663,104710.0,104700.0,0.04607465]
[1750240092338,0.42707542,104710.0,104700.0,0.04607465]
[1750240093110,0.21970093,104710.0,104700.0,0.04607465]
[1750240095919,0.21970093,104710.0,104700.0,0.04609689]
[1750240099584,0.25070093,104710.0,104700.0,0.04609689]
[1750240101599,0.25070093,104710.0,104700.0,0.04609898]
[1750240101759,0.28200093,104710.0,104700.0,0.04609898]
[1750240101971,0.59177443,104710.0,104700.0,0.04609898]
[1750240102189,0.62047743,104710.0,104700.0,0.04609898]
[1750240102605,0.62047743,104710.0,104700.0,0.02819215]
[1750240102858,0.3405772,104710.0,104700.0,0.02819215]
[1750240103059,0.3095772,104710.0,104700.0,0.02619215]
[1750240103259,0.4676572,104710.0,104700.0,0.02619215]
[1750240103462,0.4676572,104710.0,104700.0,0.02719215]
[1750240103463,0.4706572,104710.0,104700.0,0.02719215]
[1750240104047,0.47065663,104710.0,104700.0,0.02719215]
[1750240104882,0.54065663,104710.0,104700.0,0.02719215]
[1750240108519,0.54065693,104710.0,104700.0,0.02719215]
[1750240111588,0.65956423,104710.0,104700.0,0.02719215]
[1750240111754,0.69146423,104710.0,104700.0,0.02719215]
[1750240113185,0.60495693,104710.0,104700.0,0.02719215]
[1750240113417,0.57305693,104710.0,104700.0,0.02719215]
[1750240114823,0.41497693,104710.0,104700.0,0.02719215]
[1750240115026,0.54085693,104710.0,104700.0,0.02719215]
[1750240115453,0.59194122,104710.0,104700.0,0.02719215]
[1750240116098,0.59194122,104710.0,104700.0,0.05769215]
[1750240116808,0.43366388,104710.0,104700.0,0.08919215]
[1750240117032,0.12440713,104710.0,104700.0,0.30886657]
[1750240117248,0.1016489,104710.0,104700.0,0.31841702]
[1750240117623,0.10164872,104710.0,104700.0,0.31841702]
[1750240117838,0.09209899,104710.0,104700.0,0.31841702]
[1750240118038,0.09009899,104710.0,104700.0,0.31841702]
[1750240118238,0.09864881,104710.0,104700.0,0.31741702]
[1750240118442,0.03919881,104710.0,104700.0,0.31741702]
[1750240118654,0.26659141,104710.0,104700.0,0.2897652]
[1750240118841,0.25604159,104710.0,104700.0,0.08819215]
[1750240119225,0.25704159,104710.0,104700.0,0.09319215]
[1750240119628,0.25604159,104710.0,104700.0,0.09319215]
[1750240119833,0.25604159,104710.0,104700.0,0.09519215]
[1750240120091,0.25504159,104710.0,104700.0,0.09019215]
[1750240120292,0.28010381,104710.0,104700.0,0.09019215]
[1750240120443,0.30281305,104710.0,104700.0,0.08819215]
[1750240120645,0.30281305,104710.0,104700.0,0.08919215]
[1750240121216,0.30281305,104710.0,104700.0,0.09874324]
[1750240121454,0.30281305,104710.0,104700.0,0.2897652]
[1750240121665,0.30381305,104710.0,104700.0,0.31086711]
[1750240121897,0.30381305,104710.0,104700.0,0.32041793]
[1750240123187,0.29426305,104710.0,104700.0,0.31086711]
[1750240124620,0.27155381,104710.0,104700.0,0.31086711]
[1750240125425,0.26200372,104710.0,104700.0,0.2917652]
[1750240126061,0.26200372,104710.0,104700.0,0.3013162]
[1750240126749,0.26200372,104710.0,104700.0,0.09119215]
[1750240127384,0.29070372,104710.0,104700.0,0.09119215]
[1750240127936,0.29070372,104710.0,104700.0,0.2917652]
[1750240128138,0.29070372,104710.0,104700.0,0.3013162]
[1750240129182,0.29070372,104710.0,104700.0,0.31086711]
[1750240129382,0.29070372,104710.0,104700.0,0.3013162]
[1750240130003,0.29070372,104710.0,104700.0,0.10074324]
[1750240130424,0.29070372,104710.0,104700.0,0.3013162]
[1750240131276,0.29070372,104710.0,104700.0,0.31086711]
[1750240133350,0.12834972,104710.0,104700.0,0.32996848]
[1750240133559,0.10919981,104710.0,104700.0,0.32996848]
[1750240134166,0.10919981,104710.0,104700.0,0.32996784]
[1750240135408,0.09964963,104710.0,104700.0,0.32996784]
[1750240136014,0.08054936,104710.0,104700.0,0.32996784]
[1750240136167,0.08054945,104710.0,104700.0,0.48816784]
[1750240136373,0.071,104710.0,104700.0,0.48816784]
[1750240136899,0.45769322,104730.0,104720.0,0.27288356]
[1750240136900,0.22701598,104730.0,104720.0,0.27288356]
[1750240137101,0.30056204,104730.0,104720.0,0.27288356]
[1750240137301,0.42080118,104730.0,104720.0,0.27288356]
[1750240137490,0.39210518,104730.0,104720.0,0.27288356]
[1750240138082,0.11444436,104730.0,104720.0,0.28243219]
[1750240138278,0.11744436,104730.0,104720.0,0.28343219]
[1750240138557,0.01909571,104730.0,104720.0,0.28243219]
[1750240138756,0.02309571,104730.0,104720.0,0.27388356]
[1750240139058,0.02964389,104730.0,104720.0,0.28343219]
[1750240139276,0.03919216,104730.0,104720.0,0.28343219]
[1750240139415,0.04019216,104730.0,104720.0,0.28343219]
[1750240139623,0.0296438,104730.0,104720.0,0.28243219]
[1750240139825,0.03819207,104730.0,104720.0,0.28243219]
[1750240140028,0.23870767,104730.0,104720.0,0.28243237]
[1750240140257,0.23870767,104730.0,104720.0,0.27388356]
[1750240140258,0.22915995,104730.0,104720.0,0.27388356]
[1750240140656,0.22915995,104730.0,104720.0,0.28343237]
[1750240140831,0.02864435,104730.0,104720.0,0.28343237]
[1750240141033,0.02964435,104730.0,104720.0,0.294981]
[1750240141233,0.03919271,104730.0,104720.0,0.28543237]
[1750240141458,0.22061205,104730.0,104720.0,0.27588366]
[1750240141657,0.22061205,104730.0,104720.0,0.28543256]
[1750240141920,0.22061205,104730.0,104720.0,0.29498137]
[1750240142276,0.02009645,104730.0,104720.0,0.30453]
[1750240142477,0.02009608,104730.0,104720.0,0.30453]
[1750240143175,0.02964435,104730.0,104720.0,0.30453]
[1750240143312,0.02964371,104730.0,104720.0,0.30453]
[1750240143509,0.03919179,104730.0,104720.0,0.30453]
[1750240143728,0.04874006,104730.0,104720.0,0.30453]
[1750240143927,0.04874006,104730.0,104720.0,0.29498137]
[1750240144133,0.04874079,104730.0,104720.0,0.30453009]
[1750240144373,0.23016013,104730.0,104720.0,0.30453009]
[1750240144566,0.03919289,104730.0,104720.0,0.30453009]
[1750240144768,0.001,104730.0,104720.0,0.30452954]
[1750240145971,0.001,104730.0,104720.0,0.4007713]
[1750240146431,0.001,104730.0,104720.0,0.61269013]
[1750240146912,0.02868505,104760.0,104750.0,0.21956929]
[1750240147153,0.12855819,104760.0,104750.0,0.44012929]
[1750240147379,0.09553455,104760.0,104750.0,0.28176929]
[1750240147613,0.07644467,104760.0,104750.0,0.26176929]
[1750240147841,0.08598947,104760.0,104750.0,0.28086136]
[1750240148058,0.00019247,104760.0,104750.0,0.28086136]
[1750240148994,0.00119247,104760.0,104750.0,0.28186136]
[1750240149228,0.00119247,104760.0,104750.0,0.26186136]
[1750240149530,0.00119247,104760.0,104750.0,0.2714078]
[1750240149746,0.00119247,104760.0,104750.0,0.36764956]
[1750240149955,0.00119247,104760.0,104750.0,0.52588956]
[1750240152309,0.00019247,104760.0,104750.0,0.52588956]
[1750240152520,0.00119247,104760.0,104750.0,0.52888956]
[1750240152749,0.00119247,104760.0,104750.0,0.74580839]
[1750240152977,0.00019247,104760.0,104750.0,0.58456839]
[1750240153231,0.00119247,104760.0,104750.0,0.79244839]
[1750240153875,0.00119247,104760.0,104750.0,0.79144839]
[1750240154084,0.00119247,104760.0,104750.0,0.79544839]
[1750240154299,0.00219247,104760.0,104750.0,0.79544839]
[1750240154731,0.00019247,104760.0,104750.0,0.56652956]
[1750240154976,0.00219247,104760.0,104750.0,0.79844839]
[1750240156505,5e-05,104780.0,104770.0,0.21952737]
[1750240156711,0.00014065,104780.0,104770.0,0.59698796]
[1750240156933,0.00014065,104780.0,104770.0,0.79686796]
[1750240157410,0.00014065,104780.0,104770.0,0.80069096]
[1750240157848,0.00014065,104780.0,104770.0,0.80369096]
[1750240158737,0.00114065,104780.0,104770.0,0.84194001]
[1750240159175,0.00114065,104780.0,104770.0,0.89194001]
[1750240159387,0.00114065,104780.0,104770.0,0.89190001]
[1750240159600,0.00014065,104780.0,104770.0,0.88690001]
[1750240160029,0.00014065,104780.0,104770.0,0.88686001]
[1750240160458,0.00114065,104780.0,104770.0,0.89686001]
[1750240160672,0.00114065,104780.0,104770.0,0.84686001]
[1750240160914,0.00114065,104780.0,104770.0,0.39689213]
[1750240161100,0.00114065,104780.0,104770.0,0.58986913]
[1750240161537,0.00214065,104780.0,104770.0,0.59486913]
[1750240161757,0.00214065,104780.0,104770.0,0.81178796]
[1750240163105,0.00214065,104780.0,104770.0,0.81018474]
[1750240165113,0.0762522,104810.0,104800.0,0.21946445]
[1750240165324,0.10674285,104810.0,104800.0,0.37746445]
[1750240165761,0.12582408,104810.0,104800.0,0.38700579]
[1750240166391,0.13636405,104810.0,104800.0,0.39100579]
[1750240166626,0.14590485,104810.0,104800.0,0.39100579]
[1750240167055,0.15544574,104810.0,104800.0,0.39100579]
[1750240167464,0.15544574,104810.0,104800.0,0.39200579]
[1750240167682,0.07919354,104810.0,104800.0,0.39200579]
[1750240167898,0.28153489,104810.0,104800.0,0.19583969]
[1750240168115,0.27199409,104810.0,104800.0,0.16284]
[1750240168320,0.27199409,104810.0,104800.0,0.005]
[1750240168553,0.32882829,104810.0,104800.0,0.005]
[1750240168775,0.37508242,104810.0,104800.0,0.005]
[1750240169199,0.31824822,104810.0,104800.0,0.005]
[1750240170288,0.31724822,104810.0,104800.0,0.001]
[1750240170498,0.26488158,104800.0,104790.0,0.37732528]
[1750240171146,0.25533969,104800.0,104790.0,0.37732528]
[1750240171601,0.01908333,104800.0,104790.0,0.39740987]
[1750240172231,0.02008333,104800.0,104790.0,0.40240987]
[1750240172479,0.02962513,104800.0,104790.0,0.40240987]
[1750240172913,0.01054134,104800.0,104790.0,0.40240987]
[1750240173127,0.02008314,104800.0,104790.0,0.40240987]
[1750240173340,0.02962448,104800.0,104790.0,0.40240987]
[1750240173551,0.02962448,104800.0,104790.0,0.40232987]
[1750240173997,0.02008277,104800.0,104790.0,0.40232987]
[1750240174862,0.02008286,104800.0,104790.0,0.43452987]
[1750240175083,0.01054134,104800.0,104790.0,0.43452987]
[1750240175293,0.02008286,104800.0,104790.0,0.43452987]
[1750240175715,0.001,104800.0,104790.0,0.43452987]
[1750240175937,0.001,104800.0,104790.0,0.56227163]
[1750240176376,0.01054116,104800.0,104790.0,0.56227163]
[1750240176622,0.02008241,104800.0,104790.0,0.56227163]
[1750240176848,0.01054116,104800.0,104790.0,0.56227163]
[1750240177981,0.001,104800.0,104790.0,0.56227163]
[1750240178200,0.01054125,104800.0,104790.0,0.56227163]
[1750240178638,0.001,104800.0,104790.0,0.56227163]
[1750240180330,0.001,104800.0,104790.0,0.40451163]
[1750240180554,0.01054134,104800.0,104790.0,0.43424987]
[1750240180789,0.01054125,104800.0,104790.0,0.40204987]
[1750240181014,0.02008268,104800.0,104790.0,0.40204987]
[1750240181257,0.01054125,104800.0,104790.0,0.40204987]
[1750240181699,0.02962439,104800.0,104790.0,0.40204987]
[1750240181919,0.03916619,104800.0,104790.0,0.40204987]
[1750240182173,0.02962439,104800.0,104790.0,0.40204987]
[1750240182641,0.03778282,104800.0,104790.0,0.40204987]
[1750240183293,0.04732444,104800.0,104790.0,0.40204987]
[1750240183519,0.03848493,104800.0,104790.0,0.40204987]
[1750240183801,0.0296243,104800.0,104790.0,0.40204987]
[1750240184014,0.02008268,104800.0,104790.0,0.40204987]
[1750240184840,0.0296243,104800.0,104790.0,0.40204987]
[1750240186116,0.04732434,104800.0,104790.0,0.40204987]
[1750240186334,0.05618454,104800.0,104790.0,0.40204987]
[1750240187180,0.02756034,104800.0,104790.0,0.46664987]
[1750240187388,0.001,104800.0,104790.0,0.46664987]
[1750240187657,0.01054116,104800.0,104790.0,0.46664987]
[1750240188284,0.02008259,104800.0,104790.0,0.46664987]
[1750240188503,0.0200825,104800.0,104790.0,0.43504987]
[1750240188718,0.08015405,104800.0,104790.0,0.40248987]
[1750240188935,0.08901906,104800.0,104790.0,0.40248987]
[1750240189142,0.09856077,104800.0,104790.0,0.40248987]
[1750240189382,0.08901906,104800.0,104790.0,0.40248987]
[1750240189594,0.05621906,104800.0,104790.0,0.40248987]
[1750240189802,0.04667754,104800.0,104790.0,0.40248987]
[1750240190015,0.05621906,104800.0,104790.0,0.40248987]
[1750240190439,0.04667754,104800.0,104790.0,0.40248987]
[1750240190659,0.03848894,104800.0,104790.0,0.43268987]
[1750240190866,0.02962393,104800.0,104790.0,0.43268987]
[1750240191285,0.03916545,104800.0,104790.0,0.43268987]
[1750240191493,0.02962393,104800.0,104790.0,0.43268987]
[1750240191714,0.0200825,104800.0,104790.0,0.46498987]
[1750240191919,0.001,104800.0,104790.0,0.56123163]
[1750240192367,0.05378078,104810.0,104800.0,0.21946454]
[1750240192791,0.05876438,104810.0,104800.0,0.21946454]
[1750240193231,0.06830536,104810.0,104800.0,0.21946454]
[1750240193648,0.06930536,104810.0,104800.0,0.21946454]
[1750240193896,0.07030536,104810.0,104800.0,0.22346454]
[1750240194112,0.04447383,104810.0,104800.0,0.22346454]
[1750240194331,0.03493294,104810.0,104800.0,0.22346454]
[1750240194534,0.03493294,104810.0,104800.0,0.25596454]
[1750240194743,0.03560554,104810.0,104800.0,0.25596454]
[1750240194960,0.02606474,104810.0,104800.0,0.25596454]
[1750240195221,0.02606474,104810.0,104800.0,0.28816454]
[1750240195446,0.0069836,104810.0,104800.0,0.28816454]
[1750240195880,0.002,104810.0,104800.0,0.28816454]
[1750240196746,0.002,104810.0,104800.0,0.3844063]
[1750240198045,0.001,104810.0,104800.0,0.3844063]
[1750240198470,0.001,104810.0,104800.0,0.3864063]
[1750240198923,0.04707641,104830.0,104820.0,0.21942267]
[1750240199105,0.04755101,104830.0,104820.0,0.37714267]
[1750240199325,0.03801212,104830.0,104820.0,0.37714267]
[1750240199545,0.05337355,104830.0,104820.0,0.37714267]
[1750240199757,0.01960182,104830.0,104820.0,0.37714267]
[1750240199964,0.0005246,104830.0,104820.0,0.37714267]
[1750240200196,0.01106312,104830.0,104820.0,0.44094267]
[1750240200872,0.01206312,104830.0,104820.0,0.44094267]
[1750240201518,0.01206303,104830.0,104820.0,0.44094267]
[1750240201733,0.0025246,104830.0,104820.0,0.44094267]
[1750240203545,0.00890466,104840.0,104830.0,0.21940174]
[1750240203769,5e-05,104840.0,104830.0,0.50082057]
[1750240204050,5e-05,104840.0,104830.0,0.70018057]
[1750240204274,5e-05,104850.0,104840.0,0.21938081]
[1750240204510,0.0001923,104850.0,104840.0,0.7851356]
[1750240204764,0.0001923,104850.0,104840.0,0.7845988]
[1750240205219,0.0001923,104850.0,104840.0,1.08032056]
[1750240206144,0.0001923,104850.0,104840.0,0.85319117]
[1750240206375,0.0011923,104850.0,104840.0,1.05983117]
[1750240207130,0.0021923,104850.0,104840.0,1.07283117]
[1750240209074,0.0021923,104850.0,104840.0,0.85591234]
[1750240209314,0.0021923,104850.0,104840.0,1.07283117]
[1750240210551,0.0005923,104850.0,104840.0,1.07283117]
[1750240211966,0.0005923,104850.0,104840.0,0.42707234]
[1750240212204,0.0005923,104850.0,104840.0,0.33508577]
[1750240212457,0.0005923,104850.0,104840.0,0.39752401]
[1750240212458,0.0337923,104850.0,104840.0,0.39752401]
[1750240212708,0.0005923,104850.0,104840.0,0.39752401]
[1750240212939,0.06185811,104860.0,104850.0,0.21935988]
[1750240213162,0.07528579,104860.0,104850.0,0.21935988]
[1750240213377,0.09435783,104860.0,104850.0,0.21935988]
[1750240213590,0.09435783,104860.0,104850.0,0.37799988]
[1750240213808,0.10389417,104860.0,104850.0,0.37800006]
[1750240214031,0.10389417,104860.0,104850.0,0.21936006]
[1750240214297,0.10389417,104860.0,104850.0,0.37808006]
[1750240214458,0.09435783,104860.0,104850.0,0.38761694]
[1750240214691,0.2946253,104860.0,104850.0,0.37808006]
[1750240215174,0.33553515,104860.0,104850.0,0.35896602]
[1750240215401,0.33553515,104860.0,104850.0,0.37050327]
[1750240215651,0.33553515,104860.0,104850.0,0.38504043]